bitfinex/quotes_SOLUSD_20250604
["timestamp","ask_amount","ask_price","bid_price","bid_amount"]
[1749064302578,15.88488872,155.34,155.33,50.62]
[1749064304676,15.88488872,155.34,155.33,10.62]
[1749064304877,15.88488872,155.34,155.33,50.54]
[1749064309898,26.0,155.36,155.33,50.54]
[1749064310099,15.88488872,155.34,155.33,50.54]
[1749064313597,0.14216157,155.37,155.33,50.54]
[1749064313803,15.88488872,155.35,155.33,50.54]
[1749064315134,27.165272,155.39,155.33,50.54]
[1749064315135,15.88488872,155.36,155.33,50.54]
[1749064315307,15.88488872,155.37,155.33,66.42488872]
[1749064315493,26.0,155.4,155.34,15.88488872]
[1749064315811,15.88488872,155.39,155.34,15.88488872]
[1749064317215,148.1,155.38,155.34,15.88488872]
[1749064317709,148.1,155.38,155.35,15.88488872]
[1749064317910,26.0,155.41,155.36,39.8]
[1749064317911,15.88488872,155.39,155.36,39.8]
[1749064320595,15.88488872,155.38,155.36,39.8]
[1749064321304,15.88488872,155.39,155.36,39.8]
[1749064324235,15.88488872,155.4,155.36,39.8]
[1749064324714,26.0,155.41,155.36,39.8]
[1749064324916,15.88488872,155.39,155.36,39.8]
[1749064327129,26.0,155.41,155.36,55.68488872]
[1749064327130,15.88488872,155.41,155.36,55.68488872]
[1749064327299,15.88488872,155.39,155.36,39.8]
[1749064327499,15.88488872,155.38,155.36,39.8]
[1749064329334,15.88488872,155.39,155.36,39.8]
[1749064331032,15.88488872,155.38,155.36,39.8]
[1749064331424,15.88488872,155.39,155.36,39.8]
[1749064333932,148.1,155.42,155.36,39.8]
[1749064334137,15.88488872,155.39,155.36,39.8]
[1749064334316,148.1,155.42,155.36,39.8]
[1749064334317,15.88488872,155.38,155.36,39.8]
[1749064334518,15.88488872,155.37,155.36,39.8]
[1749064335420,15.88488872,155.37,155.33,10.62]
[1749064335734,15.88488872,155.35,155.34,39.68]
[1749064338943,15.88488872,155.36,155.34,39.68]
[1749064340746,148.1,155.4,155.34,39.68]
[1749064340940,15.88488872,155.36,155.34,39.68]
[1749064342230,15.88488872,155.36,155.33,10.62]
[1749064342444,15.88488872,155.36,155.34,39.64]
[1749064345244,10.16856532,155.36,155.34,39.64]
[1749064346451,10.16856532,155.35,155.33,10.62]
[1749064346628,10.16856532,155.34,155.33,10.62]
[1749064346824,10.16856532,155.34,155.33,50.26]
[1749064347249,10.16856532,155.34,155.33,10.62]
[1749064347626,10.16856532,155.34,155.33,50.26]
[1749064348538,10.16856532,155.34,155.33,50.24]
[1749064349436,15.8950823,155.34,155.33,50.24]
[1749064350544,15.8950823,155.34,155.33,10.62]
[1749064350752,15.8950823,155.34,155.33,50.24]
[1749064353632,15.8950823,155.34,155.33,50.22]
[1749064354953,15.8950823,155.34,155.33,10.62]
[1749064355166,15.8950823,155.34,155.33,50.22]
[1749064356258,15.8950823,155.34,155.33,10.62]
[1749064356431,15.8950823,155.34,155.33,50.22]
[1749064359282,148.1,155.35,155.33,50.22]
[1749064359636,163.9950823,155.35,155.33,50.22]
[1749064360150,15.8950823,155.34,155.33,50.22]
[1749064366264,15.8950823,155.34,155.33,10.62]
[1749064366843,15.8950823,155.34,155.33,50.22]
[1749064371161,26.0,155.34,155.33,50.22]
[1749064371362,36.1755329,155.34,155.33,50.22]
[1749064373359,10.1755329,155.34,155.33,50.22]
[1749064373550,36.1755329,155.34,155.33,50.22]
[1749064373954,10.1755329,155.34,155.33,50.22]
[1749064374951,66.7021316,155.36,155.33,50.22]
[1749064375253,10.1755329,155.34,155.33,50.22]
[1749064379555,26.0,155.36,155.33,50.22]
[1749064379770,10.1755329,155.34,155.33,50.22]
[1749064384091,10.31769447,155.34,155.33,10.62]
[1749064384292,26.14216157,155.31,155.3,10.34]
[1749064384583,36.31769447,155.31,155.3,49.94]
[1749064385169,42.05263542,155.31,155.3,10.34]
[1749064385555,42.05263542,155.31,155.27,10.34]
[1749064385556,18.79181043,155.3,155.27,10.34]
[1749064385773,31.8209477,155.28,155.27,10.34]
[1749064385980,31.8209477,155.28,155.27,49.94]
[1749064386174,31.96310927,155.28,155.27,49.94]
[1749064387052,31.96310927,155.28,155.27,49.96]
[1749064388374,31.96310927,155.28,155.27,10.34]
[1749064388681,31.96310927,155.28,155.27,49.96]
[1749064389584,31.96310927,155.28,155.27,10.34]
[1749064389767,31.96310927,155.28,155.27,49.96]
[1749064389967,31.96310927,155.28,155.27,10.34]
[1749064390167,31.96310927,155.28,155.27,49.96]
[1749064392269,50.89708127,155.28,155.27,49.96]
[1749064393490,50.89708127,155.28,155.27,10.34]
[1749064396186,19.07613357,155.28,155.27,10.34]
[1749064396384,50.89708127,155.28,155.27,10.34]
[1749064397263,15.91047385,155.28,155.27,10.34]
[1749064408872,26.28432314,155.31,155.27,10.34]
[1749064408873,0.14216157,155.31,155.27,10.34]
[1749064409100,15.91047385,155.29,155.27,10.34]
[1749064409290,10.17836427,155.29,155.27,10.34]
[1749064411211,15.90377191,155.29,155.27,10.34]
[1749064413513,15.90377191,155.3,155.27,10.34]
[1749064413676,15.90377191,155.31,155.27,26.24377191]
[1749064413881,15.90377191,155.31,155.27,10.34]
[1749064414304,15.90377191,155.3,155.27,10.34]
[1749064416686,15.90377191,155.31,155.27,10.34]
[1749064417188,148.1,155.32,155.27,10.34]
[1749064417189,148.1,155.32,155.28,15.90377191]
[1749064417388,148.1,155.32,155.29,55.52377191]
[1749064417803,148.1,155.32,155.3,15.90377191]
[1749064418419,148.1,155.32,155.29,39.62]
[1749064418623,148.1,155.32,155.3,15.90377191]
[1749064422312,15.90377191,155.34,155.3,15.90377191]
[1749064424007,15.90377191,155.34,155.29,55.52377191]
[1749064427524,15.90377191,155.33,155.29,55.52377191]
[1749064428515,15.90377191,155.32,155.3,39.6]
[1749064429813,15.90377191,155.32,155.31,39.6]
[1749064431322,15.90377191,155.32,155.28,15.90377191]
[1749064431624,15.90377191,155.32,155.31,39.6]
[1749064434008,15.90377191,155.32,155.31,49.94]
[1749064434899,15.90377191,155.32,155.31,10.34]
[1749064435100,15.90377191,155.32,155.31,49.94]
[1749064436418,164.00377191,155.35,155.31,49.94]
[1749064436617,15.90377191,155.34,155.31,49.94]
[1749064437210,10.17124528,155.34,155.31,49.94]
[1749064439346,15.89380043,155.34,155.31,49.94]
[1749064443640,15.89380043,155.34,155.32,10.34]
[1749064443822,15.89380043,155.34,155.33,39.58]
[1749064449441,15.89380043,155.34,155.26,63.02]
[1749064449442,148.1,155.33,155.26,37.02]
[1749064449642,23.797362,155.34,155.27,10.34]
[1749064449643,15.89380043,155.29,155.27,10.34]
[1749064449855,15.89380043,155.28,155.27,10.34]
[1749064450018,15.89380043,155.28,155.27,49.92]
[1749064451035,15.89380043,155.29,155.27,49.92]
[1749064451443,15.89380043,155.29,155.28,39.58]
[1749064453550,148.1,155.31,155.28,39.58]
[1749064454059,15.89380043,155.29,155.28,39.58]
[1749064461233,10.17900574,155.29,155.28,39.58]
[1749064464962,148.1,155.31,155.28,39.58]
[1749064465138,158.27900574,155.31,155.28,39.58]
[1749064465538,10.17900574,155.3,155.28,39.58]
[1749064466465,10.17900574,155.29,155.28,39.58]
[1749064469563,10.17900574,155.3,155.28,39.58]
[1749064473344,10.17900574,155.29,155.28,39.58]
[1749064482989,10.17900574,155.29,155.28,49.9]
[1749064484367,148.1,155.31,155.28,49.9]
[1749064484660,10.17900574,155.3,155.28,49.9]
[1749064485673,10.17900574,155.29,155.28,49.9]
[1749064486252,10.17900574,155.29,155.28,10.32]
[1749064486457,10.17900574,155.29,155.28,49.88]
[1749064487254,10.17900574,155.29,155.28,10.32]
[1749064487573,10.17900574,155.29,155.28,49.88]
[1749064491276,10.17900574,155.29,155.28,10.32]
[1749064491480,10.32116731,155.29,155.28,49.88]
[1749064493286,0.14216157,155.29,155.28,49.88]
[1749064493579,10.17900574,155.29,155.28,49.88]
[1749064495273,15.90867626,155.29,155.28,49.88]
[1749064498573,15.90867626,155.29,155.28,10.32]
[1749064498769,15.90867626,155.29,155.28,49.88]
[1749064506394,16.05083783,155.29,155.28,49.88]
[1749064506770,16.05083783,155.29,155.28,10.32]
[1749064507176,56.31275313,155.29,155.28,10.32]
[1749064507474,45.07613357,155.25,155.24,10.32]
[1749064507689,0.14216157,155.24,155.23,39.56]
[1749064507881,16.05083783,155.24,155.23,39.56]
[1749064508080,16.05083783,155.24,155.22,10.32]
[1749064508301,34.98480983,155.23,155.22,10.32]
[1749064509319,15.90867626,155.23,155.22,10.32]
[1749064509515,148.1,155.23,155.22,10.32]
[1749064511987,148.1,155.23,155.22,26.22867626]
[1749064512305,15.90867626,155.28,155.22,26.22867626]
[1749064512490,15.90867626,155.28,155.23,55.46867626]
[1749064512812,174.1,155.31,155.23,55.46867626]
[1749064513000,15.90867626,155.27,155.23,55.46867626]
[1749064513715,15.90867626,155.29,155.25,15.90867626]
[1749064513875,15.90867626,155.29,155.26,39.56]
[1749064514189,15.90867626,155.28,155.27,10.32]
[1749064515586,148.1,155.3,155.27,10.32]
[1749064515904,15.90867626,155.28,155.27,10.32]
[1749064516122,15.90867626,155.28,155.27,49.88]
[1749064519798,15.90867626,155.29,155.27,49.88]
[1749064520392,15.90867626,155.28,155.27,49.88]
[1749064520614,148.1,155.3,155.27,49.88]
[1749064520801,164.00867626,155.3,155.27,49.88]
[1749064521397,15.90867626,155.29,155.27,49.88]
[1749064522805,164.00867626,155.3,155.27,49.88]
[1749064522995,15.90867626,155.32,155.28,15.90867626]
[1749064523201,15.90867626,155.32,155.29,39.54]
[1749064523400,15.90867626,155.31,155.29,39.54]
[1749064524010,15.90867626,155.3,155.29,39.54]
[1749064524208,15.90867626,155.3,155.27,10.32]
[1749064524414,26.0,155.31,155.28,39.54]
[1749064524619,15.90867626,155.29,155.28,39.54]
[1749064527612,15.90867626,155.29,155.27,10.32]
[1749064527812,15.90867626,155.28,155.27,10.32]
[1749064528115,15.90867626,155.28,155.27,49.86]
[1749064528624,15.90867626,155.28,155.27,10.32]
[1749064528828,15.90867626,155.28,155.27,49.86]
[1749064529317,15.90867626,155.28,155.27,10.32]
[1749064529531,31.81735252,155.28,155.27,10.32]
[1749064529720,31.95951409,155.28,155.27,49.86]
[1749064530218,31.95951409,155.28,155.27,10.32]
[1749064531223,31.95951409,155.28,155.24,10.3]
[1749064531224,26.0,155.25,155.24,10.3]
[1749064531423,42.05083783,155.25,155.24,10.3]
[1749064532430,60.98480983,155.25,155.24,10.3]
[1749064533937,42.05083783,155.25,155.24,10.3]
[1749064534305,41.90867626,155.25,155.24,10.3]
[1749064535613,26.0,155.25,155.24,10.3]
[1749064535838,41.90867626,155.25,155.24,10.3]
[1749064537112,15.90867626,155.25,155.24,10.3]
[1749064537916,164.00867626,155.27,155.24,10.3]
[1749064538126,164.00867626,155.27,155.25,39.54]
[1749064538421,15.90867626,155.26,155.25,39.54]
[1749064539108,164.00867626,155.27,155.25,39.54]
[1749064540118,148.1,155.27,155.25,39.54]
[1749064542412,164.00867626,155.27,155.25,39.54]
[1749064542611,164.39577626,155.27,155.25,39.54]
[1749064544158,15.90867626,155.26,155.24,10.3]
[1749064544362,15.90867626,155.25,155.24,10.3]
[1749064544847,15.90867626,155.25,155.24,49.84]
[1749064549136,15.90867626,155.25,155.24,10.3]
[1749064549342,15.90867626,155.25,155.24,49.84]
[1749064550658,15.90867626,155.26,155.24,49.84]
[1749064554260,15.90867626,155.25,155.24,49.84]
[1749064556264,16.05083783,155.25,155.24,10.3]
[1749064556452,16.05083783,155.25,155.24,49.84]
[1749064556656,164.15083783,155.25,155.24,49.84]
[1749064557257,183.2269714,155.25,155.24,10.3]
[1749064557441,189.66819523,155.25,155.24,10.3]
[1749064557964,19.07613357,155.24,155.22,39.54]
[1749064558260,16.05083783,155.23,155.22,39.54]
[1749064559766,16.05083783,155.23,155.2,10.3]
[1749064559941,0.14216157,155.23,155.22,39.54]
[1749064560148,16.05083783,155.23,155.22,39.54]
[1749064560849,16.05083783,155.23,155.2,10.3]
[1749064560850,148.24216157,155.22,155.2,10.3]
[1749064561049,50.89348609,155.21,155.2,10.3]
[1749064561445,19.07613357,155.2,155.18,0.8739085]
[1749064561769,34.98480983,155.19,155.18,40.4139085]
[1749064562147,34.98480983,155.19,155.18,0.8739085]
[1749064563860,15.90867626,155.19,155.18,0.8739085]
[1749064565356,15.90867626,155.19,155.18,40.4139085]
[1749064572202,34.98480983,155.19,155.18,0.8739085]
[1749064572493,35.1269714,155.19,155.18,0.8739085]
[1749064575887,35.5140714,155.19,155.18,0.8739085]
[1749064577978,0.3871,155.19,155.18,0.8739085]
[1749064578174,16.29577626,155.19,155.18,0.8739085]
[1749064579598,0.3871,155.19,155.18,0.8739085]
[1749064583680,16.29577626,155.19,155.18,0.8739085]
[1749064584184,16.29577626,155.19,155.18,40.4139085]
[1749064585373,164.39577626,155.19,155.18,40.4139085]
[1749064590307,164.39577626,155.19,155.18,0.8739085]
[1749064590492,164.53793783,155.19,155.18,0.8739085]
[1749064591027,183.6140714,155.19,155.18,0.8739085]
[1749064591312,0.14216157,155.17,155.13,10.3]
[1749064591523,0.14216157,155.17,155.14,39.54]
[1749064591524,0.14216157,155.15,155.14,39.54]
[1749064592574,16.05083783,155.15,155.14,39.54]
[1749064594479,16.05083783,155.15,155.13,10.3]
[1749064594799,0.14216157,155.15,155.14,39.54]
[1749064595683,0.52926157,155.15,155.14,39.54]
[1749064595884,16.43793783,155.15,155.14,39.54]
[1749064597481,16.29577626,155.15,155.14,39.54]
[1749064598199,16.43793783,155.15,155.14,39.54]
[1749064598707,16.29577626,155.15,155.14,39.54]
[1749064604494,0.3871,155.15,155.14,39.54]
[1749064605211,0.3871,155.15,155.14,55.44867626]
[1749064608603,0.3871,155.15,155.14,81.44867626]
[1749064608910,0.3871,155.15,155.14,100.24048669]
[1749064609227,0.3871,155.15,155.14,84.33181043]
[1749064609409,0.3871,155.15,155.14,100.24048669]
[1749064612115,0.3871,155.15,155.14,26.0]
[1749064612315,0.3871,155.15,155.14,10.3]
[1749064612524,0.3871,155.15,155.14,49.84]
[1749064612725,0.3871,155.15,155.14,10.3]
[1749064613023,0.3871,155.15,155.14,49.84]
[1749064616329,0.3871,155.15,155.14,10.3]
[1749064616507,0.3871,155.15,155.14,49.84]
[1749064620528,16.29577626,155.15,155.14,49.84]
[1749064621630,16.29577626,155.15,155.14,10.3]
[1749064621805,16.29577626,155.15,155.14,49.84]
[1749064622302,16.29577626,155.15,155.14,10.3]
[1749064622505,16.29577626,155.15,155.14,49.84]
[1749064623124,16.29577626,155.15,155.14,10.3]
[1749064623336,16.29577626,155.15,155.14,49.84]
[1749064624110,0.3871,155.15,155.14,49.84]
[1749064624330,16.29577626,155.15,155.14,49.84]
[1749064624853,0.3871,155.15,155.14,49.84]
[1749064625140,16.29577626,155.15,155.14,49.84]
[1749064625331,0.3871,155.15,155.14,49.84]
[1749064629517,0.3871,155.15,155.14,65.74867626]
[1749064631141,0.3871,155.15,155.14,49.84]
[1749064631525,0.3871,155.15,155.14,65.74867626]
[1749064636026,4.61482084,155.3,155.22,26.0]
[1749064636219,165.51207626,155.31,155.26,15.90867626]
[1749064636537,15.90867626,155.36,155.28,15.90867626]
[1749064636538,15.90867626,155.33,155.28,15.90867626]
[1749064636747,15.90867626,155.33,155.29,65.78867626]
[1749064637339,1.6614,155.35,155.29,65.78867626]
[1749064637643,15.90867626,155.34,155.29,65.78867626]
[1749064637971,15.90867626,155.33,155.29,65.78867626]
[1749064638118,15.90867626,155.32,155.29,49.88]
[1749064638315,1.6614,155.35,155.29,49.88]
[1749064638544,15.90867626,155.33,155.29,49.88]
[1749064640856,1.5214,155.43,155.33,18.79181043]
[1749064641057,1.5214,155.43,155.38,15.90867626]
[1749064641253,15.90867626,155.42,155.39,49.9]
[1749064641419,15.90867626,155.41,155.39,49.9]
[1749064642655,15.90867626,155.4,155.39,49.9]
[1749064644928,15.90867626,155.4,155.39,49.88]
[1749064646743,0.28432314,155.42,155.39,49.88]
[1749064646949,15.90867626,155.4,155.39,49.88]
[1749064647131,15.90867626,155.42,155.39,49.88]
[1749064647329,15.90867626,155.41,155.39,49.88]
[1749064647855,15.90867626,155.4,155.39,49.88]
[1749064648042,15.90867626,155.41,155.39,49.88]
[1749064649036,15.90867626,155.4,155.39,49.88]
[1749064649267,15.90867626,155.4,155.39,49.84]
[1749064650153,15.90867626,155.4,155.39,10.32]
[1749064650352,15.90867626,155.4,155.39,49.84]
[1749064658573,6.3469,155.45,155.39,49.84]
[1749064658574,154.4469,155.45,155.39,49.84]
[1749064658783,15.90867626,155.42,155.39,49.84]
[1749064659783,154.4469,155.45,155.39,10.32]
[1749064659784,15.90867626,155.4,155.39,10.32]
[1749064660178,15.90867626,155.4,155.39,49.82]
[1749064660676,15.90867626,155.4,155.39,10.32]
[1749064660883,15.90867626,155.4,155.39,49.82]
[1749064662200,15.90867626,155.42,155.39,49.82]
[1749064662872,15.90867626,155.41,155.39,49.82]
[1749064665186,15.90867626,155.4,155.39,10.32]
[1749064665398,15.90867626,155.4,155.39,49.82]
[1749064666064,15.90867626,155.4,155.39,10.32]
[1749064666300,15.90867626,155.4,155.39,49.82]
[1749064669688,15.90867626,155.4,155.39,10.32]
[1749064669983,15.90867626,155.4,155.39,49.82]
[1749064677596,0.28432314,155.42,155.39,49.82]
[1749064677802,15.90867626,155.4,155.39,49.82]
[1749064677970,15.90867626,155.41,155.39,49.82]
[1749064679389,15.90867626,155.4,155.39,49.82]
[1749064680193,1.5974,155.46,155.39,49.82]
[1749064680384,15.90867626,155.44,155.39,65.72867626]
[1749064680588,15.90867626,155.44,155.4,15.90867626]
[1749064680904,15.90867626,155.46,155.41,55.40867626]
[1749064681277,3.68003977,155.48,155.42,15.90867626]
[1749064681471,15.90867626,155.46,155.41,55.40867626]
[1749064682101,15.90867626,155.47,155.42,15.90867626]
[1749064682893,0.14216157,155.49,155.42,15.90867626]
[1749064683102,15.90867626,155.49,155.44,15.90867626]
[1749064683278,15.90867626,155.49,155.45,49.78]
[1749064683599,15.90867626,155.5,155.46,15.90867626]
[1749064683785,15.90867626,155.5,155.45,65.68867626]
[1749064683982,15.90867626,155.5,155.45,49.78]
[1749064684197,15.90867626,155.5,155.45,65.68867626]
[1749064685297,15.90867626,155.49,155.45,65.68867626]
[1749064685707,15.90867626,155.49,155.45,68.97892185]
[1749064686993,15.90867626,155.5,155.46,15.90867626]
[1749064687211,15.90867626,155.5,155.45,68.97892185]
[1749064687730,3.68011822,155.53,155.46,15.90867626]
[1749064687882,0.14216157,155.54,155.48,15.90867626]
[1749064688087,15.90867626,155.53,155.49,39.48]
[1749064688391,15.90867626,155.52,155.5,10.28]
[1749064688980,32.61382314,155.57,155.5,10.28]
[1749064689185,15.90867626,155.53,155.5,10.28]
[1749064689415,6.3295,155.57,155.5,10.28]
[1749064689624,15.90867626,155.52,155.5,10.28]
[1749064689988,6.3295,155.57,155.5,26.18867626]
[1749064690187,15.90867626,155.54,155.5,26.18867626]
[1749064690707,0.28432314,155.57,155.5,26.18867626]
[1749064690901,15.90867626,155.54,155.5,26.18867626]
[1749064691402,15.90867626,155.54,155.5,10.28]
[1749064691987,15.90867626,155.53,155.5,10.28]
[1749064693917,15.90867626,155.52,155.5,10.28]
[1749064696618,15.90867626,155.51,155.5,10.28]
[1749064696816,15.90867626,155.51,155.5,49.74]
[1749064699231,32.63392314,155.55,155.5,49.74]
[1749064699430,15.90867626,155.51,155.5,49.74]
[1749064701330,15.90867626,155.52,155.5,49.74]
[1749064701523,15.90867626,155.53,155.5,49.74]
[1749064702131,0.28432314,155.57,155.5,49.74]
[1749064702437,15.90867626,155.53,155.5,49.74]
[1749064702641,15.90867626,155.54,155.5,49.74]
[1749064703015,0.28432314,155.57,155.5,49.74]
[1749064703215,15.90867626,155.54,155.5,49.74]
[1749064703433,15.90867626,155.54,155.5,65.64867626]
[1749064703634,15.90867626,155.53,155.5,49.74]
[1749064705020,15.90867626,155.54,155.5,65.64867626]
[1749064706150,0.28432314,155.57,155.5,65.64867626]
[1749064706326,15.90867626,155.54,155.5,65.64867626]
[1749064706925,15.90867626,155.53,155.5,49.74]
[1749064712724,15.90867626,155.52,155.5,49.74]
[1749064712931,15.90867626,155.51,155.5,10.28]
[1749064713248,15.90867626,155.51,155.5,49.74]
[1749064713628,15.90867626,155.51,155.5,10.28]
[1749064713836,15.90867626,155.51,155.5,49.74]
[1749064714428,15.90867626,155.52,155.5,49.74]
[1749064714654,15.90867626,155.53,155.5,49.74]
[1749064714853,15.90867626,155.53,155.51,39.46]
[1749064716154,0.28432314,155.57,155.51,39.46]
[1749064716354,15.90867626,155.55,155.51,39.46]
[1749064716736,15.90867626,155.56,155.51,55.36867626]
[1749064718733,27.5945,155.58,155.51,55.36867626]
[1749064718934,15.90867626,155.56,155.51,55.36867626]
[1749064719536,15.90867626,155.56,155.51,39.46]
[1749064719736,15.90867626,155.56,155.52,15.90867626]
[1749064719941,0.14216157,155.63,155.54,15.90867626]
[1749064720139,15.90867626,155.59,155.55,65.60867626]
[1749064720356,15.90867626,155.6,155.55,65.60867626]
[1749064720662,15.90867626,155.59,155.55,65.60867626]
[1749064720831,15.90867626,155.59,155.55,49.7]
[1749064721032,15.90867626,155.6,155.55,65.60867626]
[1749064721260,15.90867626,155.59,155.55,49.7]
[1749064721636,26.0,155.61,155.56,15.90867626]
[1749064721841,26.0,155.61,155.55,49.7]
[1749064721842,15.90867626,155.6,155.55,65.60867626]
[1749064722335,15.90867626,155.6,155.56,15.90867626]
[1749064724044,15.90867626,155.59,155.55,65.60867626]
[1749064724565,15.90867626,155.6,155.55,65.60867626]
[1749064725767,15.90867626,155.59,155.55,65.60867626]
[1749064725951,15.90867626,155.6,155.55,65.60867626]
[1749064727969,0.28432314,155.63,155.56,15.90867626]
[1749064727970,15.90867626,155.61,155.56,15.90867626]
[1749064728265,0.28432314,155.63,155.56,15.90867626]
[1749064728461,15.90867626,155.62,155.57,15.90867626]
[1749064728662,15.90867626,155.63,155.58,15.90867626]
[1749064728858,3.67418689,155.67,155.59,55.34867626]
[1749064729052,15.90867626,155.65,155.6,26.16867626]
[1749064729457,26.0,155.66,155.6,26.16867626]
[1749064729655,26.0,155.66,155.61,15.90867626]
[1749064729656,15.90867626,155.65,155.61,15.90867626]
[1749064729861,15.90867626,155.65,155.6,26.16867626]
[1749064730051,26.0,155.66,155.6,26.16867626]
[1749064730052,26.28432314,155.66,155.6,10.26]
[1749064730372,15.90867626,155.62,155.6,10.26]
[1749064730767,15.90867626,155.62,155.61,39.44]
[1749064732567,15.90867626,155.62,155.6,10.26]
[1749064732742,15.90867626,155.61,155.6,10.26]
[1749064732941,15.90867626,155.61,155.6,49.7]
[1749064733143,6.2409,155.63,155.6,49.7]
[1749064733451,15.90867626,155.61,155.6,49.7]
[1749064734353,15.90867626,155.61,155.6,10.26]
[1749064734553,16.1929994,155.61,155.6,10.26]
[1749064734754,16.1929994,155.61,155.6,49.7]
[1749064736970,16.1929994,155.61,155.6,10.26]
[1749064737168,16.1929994,155.61,155.6,49.7]
[1749064738749,0.28432314,155.61,155.6,49.7]
[1749064738969,42.1929994,155.61,155.6,49.7]
[1749064739169,26.28432314,155.61,155.6,49.7]
[1749064739371,42.1929994,155.61,155.6,49.7]
[1749064739558,26.28432314,155.61,155.6,49.7]
[1749064739761,42.1929994,155.61,155.6,49.7]
[1749064740771,48.61932161,155.61,155.6,10.26]
[1749064740962,42.1929994,155.61,155.6,49.7]
[1749064741367,91.37356987,155.61,155.6,10.26]
[1749064742186,95.04761138,155.61,155.6,10.26]
[1749064742484,31.60096465,155.61,155.6,10.26]
[1749064742654,42.1929994,155.61,155.6,10.26]
[1749064743577,26.28432314,155.61,155.6,10.26]
[1749064743754,42.1929994,155.61,155.6,10.26]
[1749064746363,45.87015779,155.61,155.6,10.26]
[1749064746564,45.87038502,155.61,155.6,10.26]
[1749064749461,42.1929994,155.61,155.6,10.26]
[1749064749861,26.28432314,155.61,155.6,10.26]
[1749064750068,42.1929994,155.61,155.6,10.26]
[1749064751977,41.90867626,155.61,155.6,10.26]
[1749064752184,15.90867626,155.61,155.6,10.26]
[1749064752368,26.0,155.62,155.6,10.26]
[1749064752681,26.28432314,155.62,155.61,39.44]
[1749064753885,42.1929994,155.62,155.61,39.44]
[1749064754566,45.87282444,155.62,155.61,39.44]
[1749064756083,42.1929994,155.62,155.61,39.44]
[1749064757490,26.28432314,155.62,155.61,39.44]
[1749064757692,42.1929994,155.62,155.61,39.44]
[1749064759388,45.87614139,155.62,155.61,39.44]
[1749064762282,45.87614139,155.62,155.61,49.7]
[1749064766587,152.69673203,155.67,155.61,49.7]
[1749064766889,15.90867626,155.65,155.61,65.60867626]
[1749064767484,15.90867626,155.66,155.62,15.90867626]
[1749064767680,15.90867626,155.66,155.63,39.44]
[1749064769979,16.29617626,155.66,155.63,39.44]
[1749064772707,15.90867626,155.65,155.63,39.44]
[1749064777207,16.29617626,155.66,155.63,39.44]
[1749064779110,0.3875,155.66,155.63,39.44]
[1749064779907,0.3875,155.66,155.63,55.34867626]
[1749064780923,0.3875,155.66,155.63,56.85087626]
[1749064785010,16.29617626,155.66,155.63,39.44]
[1749064785325,0.3875,155.66,155.64,10.26]
[1749064785615,15.90867626,155.65,155.6,15.90867626]
[1749064785914,15.90867626,155.64,155.61,49.68]
[1749064786117,15.90867626,155.64,155.62,39.42]
[1749064786614,0.3875,155.66,155.62,39.42]
[1749064786789,15.90867626,155.64,155.62,39.42]
[1749064787805,15.90867626,155.64,155.61,10.26]
[1749064788021,15.90867626,155.64,155.63,39.4]
[1749064790108,15.90867626,155.64,155.61,10.26]
[1749064790305,15.90867626,155.63,155.62,39.4]
[1749064790700,15.90867626,155.63,155.61,10.26]
[1749064790903,15.90867626,155.62,155.61,10.26]
[1749064791089,15.90867626,155.62,155.61,49.66]
[1749064791806,16.29617626,155.62,155.61,49.66]
[1749064793503,0.3875,155.62,155.61,49.66]
[1749064793734,16.29617626,155.62,155.61,49.66]
[1749064798510,0.3875,155.62,155.61,49.66]
[1749064798709,16.29617626,155.62,155.61,49.66]